bitfinex/quotes_BTCUSD_20240906
["timestamp","ask_amount","ask_price","bid_price","bid_amount"]
[1725597379232,1.83317512,56842.0,56841.0,0.02060035]
[1725597379233,1.72745909,56842.0,56841.0,0.02060035]
[1725597379456,1.72745909,56842.0,56841.0,0.001632]
[1725597379649,1.72845909,56842.0,56841.0,0.005632]
[1725597380218,1.80770359,56842.0,56841.0,0.02460066]
[1725597380635,1.80870359,56842.0,56841.0,0.09860066]
[1725597381220,1.72945909,56842.0,56841.0,0.079632]
[1725597381432,1.72945909,56842.0,56841.0,0.005632]
[1725597381629,1.79216502,56842.0,56841.0,0.005632]
[1725597381895,1.8087075,56842.0,56841.0,0.005632]
[1725597382837,1.82676859,56842.0,56841.0,0.005632]
[1725597384372,1.74752409,56842.0,56841.0,0.005632]
[1725597385503,1.73098161,56842.0,56841.0,0.005632]
[1725597385714,1.74752417,56842.0,56841.0,0.005632]
[1725597388436,1.73098161,56842.0,56841.0,0.005632]
[1725597388647,1.74752418,56842.0,56841.0,0.005632]
[1725597389287,1.80029497,56842.0,56841.0,0.005632]
[1725597389926,1.80029497,56842.0,56841.0,0.001632]
[1725597389927,1.50809035,56842.0,56841.0,0.001632]
[1725597390131,1.68501635,56842.0,56841.0,0.001632]
[1725597390363,1.68601635,56842.0,56841.0,0.005632]
[1725597390585,1.68601635,56842.0,56841.0,0.001632]
[1725597391020,1.68801635,56842.0,56841.0,0.001632]
[1725597391441,1.68701635,56842.0,56841.0,0.001632]
[1725597391899,1.69001635,56842.0,56841.0,0.001632]
[1725597392107,1.68701635,56842.0,56841.0,0.001632]
[1725597392321,1.69101635,56842.0,56841.0,0.001632]
[1725597392750,1.69801635,56842.0,56841.0,0.001632]
[1725597393423,1.69101635,56842.0,56841.0,0.001632]
[1725597393669,1.68401635,56842.0,56841.0,0.001632]
[1725597394087,1.68801635,56842.0,56841.0,0.001632]
[1725597394819,1.69301635,56842.0,56841.0,0.001632]
[1725597395042,1.67647378,56842.0,56841.0,0.001632]
[1725597395266,1.69301628,56842.0,56841.0,0.001632]
[1725597396567,1.69301627,56842.0,56841.0,0.001632]
[1725597397010,1.7545241,56842.0,56841.0,0.001632]
[1725597397896,1.8258241,56842.0,56841.0,0.001632]
[1725597398377,1.80928161,56842.0,56841.0,0.001632]
[1725597398567,1.84236677,56842.0,56841.0,0.001632]
[1725597399015,1.77106677,56842.0,56841.0,0.001632]
[1725597399841,1.78073177,56842.0,56841.0,0.001632]
[1725597403509,1.76418919,56842.0,56841.0,0.001632]
[1725597403749,1.75418919,56842.0,56841.0,0.001632]
[1725597403969,1.80694586,56842.0,56841.0,0.001632]
[1725597405284,1.80694667,56842.0,56841.0,0.001632]
[1725597406546,2.15879867,56842.0,56841.0,0.001632]
[1725597406754,1.6576,56836.0,56835.0,0.001632]
[1725597406963,2.12603239,56836.0,56835.0,0.001632]
[1725597407619,2.15362321,56836.0,56835.0,0.001632]
[1725597408238,2.18119976,56836.0,56835.0,0.001632]
[1725597408532,2.1812023,56836.0,56835.0,0.001632]
[1725597408754,2.1812023,56836.0,56835.0,0.003632]
[1725597409188,2.26032508,56836.0,56835.0,0.003632]
[1725597409385,2.26032508,56836.0,56835.0,0.001632]
[1725597409733,2.26132508,56836.0,56835.0,0.001632]
[1725597410171,2.27954089,56836.0,56835.0,0.001632]
[1725597410820,2.28154089,56836.0,56835.0,0.001632]
[1725597411979,2.26499496,56836.0,56835.0,0.001632]
[1725597412188,2.28154091,56836.0,56835.0,0.001632]
[1725597412396,2.26499496,56836.0,56835.0,0.001632]
[1725597412609,2.28154091,56836.0,56835.0,0.001632]
[1725597413545,2.20241813,56836.0,56835.0,0.001632]
[1725597414829,2.20241813,56836.0,56827.0,0.001632]
[1725597414830,1.583725,56828.0,56827.0,0.001632]
[1725597415031,0.527964,56822.0,56821.0,0.4672]
[1725597415280,0.527991,56819.0,56818.0,0.00164]
[1725597415489,1.95251596,56819.0,56818.0,0.00164]
[1725597415698,2.05251596,56819.0,56818.0,0.00164]
[1725597416439,2.035967,56819.0,56818.0,0.00164]
[1725597416659,2.05251734,56819.0,56818.0,0.00164]
[1725597417963,2.05751734,56819.0,56818.0,0.00164]
[1725597418350,2.05251734,56819.0,56818.0,0.00164]
[1725597418549,1.72077524,56819.0,56818.0,0.00164]
[1725597418792,1.71877524,56819.0,56818.0,0.00164]
[1725597418942,1.72477524,56819.0,56818.0,0.00164]
[1725597419170,1.72977524,56819.0,56818.0,0.00164]
[1725597420885,1.72977483,56819.0,56818.0,0.00164]
[1725597423034,1.7132249,56819.0,56818.0,0.00164]
[1725597424173,1.72977483,56819.0,56818.0,0.00164]
[1725597424941,1.7132249,56819.0,56818.0,0.00164]
[1725597425177,1.72977481,56819.0,56818.0,0.00164]
[1725597425410,1.37778081,56819.0,56818.0,0.00164]
[1725597425646,1.01459591,56819.0,56818.0,0.15784]
[1725597425860,1.00753336,56819.0,56818.0,0.15784]
[1725597426723,1.00753336,56819.0,56818.0,0.17685897]
[1725597426951,1.00153336,56819.0,56818.0,0.17685897]
[1725597427164,1.00153286,56819.0,56818.0,0.17685897]
[1725597427380,1.00153286,56819.0,56818.0,0.17785897]
[1725597427825,1.34852686,56819.0,56818.0,0.15784]
[1725597428051,1.34852686,56819.0,56818.0,0.15984]
[1725597428280,1.34952686,56819.0,56818.0,0.16084]
[1725597428503,1.34952686,56819.0,56818.0,0.15884]
[1725597428720,1.35052686,56819.0,56818.0,0.16084]
[1725597430685,1.35052705,56819.0,56818.0,0.16084]
[1725597434552,1.35052712,56819.0,56818.0,0.16084]
[1725597434991,1.333979,56819.0,56818.0,0.16084]
[1725597435224,1.35052713,56819.0,56818.0,0.16084]
[1725597441123,1.35052736,56819.0,56818.0,0.16084]
[1725597444471,1.333979,56819.0,56818.0,0.16084]
[1725597444656,1.35052692,56819.0,56818.0,0.16084]
[1725597445520,0.99853292,56819.0,56818.0,0.16084]
[1725597445993,0.99853292,56819.0,56818.0,0.17985897]
[1725597447055,0.82253592,56819.0,56818.0,0.17985897]
[1725597447492,0.99853292,56819.0,56818.0,0.17985897]
[1725597447709,0.981985,56819.0,56818.0,0.17985897]
[1725597447918,0.99853321,56819.0,56818.0,0.17985897]
[1725597451035,0.981985,56819.0,56818.0,0.17985897]
[1725597451238,0.99853288,56819.0,56818.0,0.17985897]
[1725597451622,0.99853288,56819.0,56818.0,0.16084]
[1725597454963,0.01854788,56819.0,56818.0,0.35568925]
[1725597455167,0.01854788,56819.0,56818.0,0.70769025]
[1725597455389,0.01854788,56819.0,56818.0,0.37270812]
[1725597455599,0.01854788,56819.0,56818.0,0.19670812]
[1725597456039,0.01854788,56819.0,56818.0,0.37270812]
[1725597456479,0.01854788,56819.0,56818.0,0.72470912]
[1725597456920,0.0175455,56819.0,56818.0,0.72370912]
[1725597457151,0.0165455,56819.0,56818.0,0.72170912]
[1725597457353,0.0175455,56819.0,56818.0,0.73470912]
[1725597457579,0.0165455,56819.0,56818.0,0.72670912]
[1725597457790,0.0165455,56819.0,56818.0,0.72170912]
[1725597458007,0.001,56819.0,56818.0,0.72970912]
[1725597458221,0.0185455,56819.0,56818.0,0.73570912]
[1725597464932,0.002,56819.0,56818.0,0.73570912]
[1725597465158,0.54653649,56819.0,56818.0,0.20770812]
[1725597465380,0.54653649,56819.0,56818.0,0.05150812]
[1725597465381,0.89853049,56819.0,56818.0,0.05150812]
[1725597469525,0.54653649,56819.0,56818.0,0.05150812]
[1725597470009,0.54653649,56819.0,56818.0,0.19930812]
[1725597470010,0.01854549,56819.0,56818.0,0.19930812]
[1725597470679,0.01936249,56819.0,56818.0,0.19930812]
[1725597472265,0.01936258,56819.0,56818.0,0.19930812]
[1725597474496,0.19535958,56819.0,56818.0,0.19930812]
[1725597474718,0.19535958,56819.0,56818.0,0.05150812]
[1725597475207,0.002817,56819.0,56818.0,0.05150812]
[1725597475432,0.01936263,56819.0,56818.0,0.05150812]
[1725597475874,0.19535963,56819.0,56818.0,0.05150812]
[1725597477245,1.31824163,56819.0,56818.0,0.03465887]
[1725597477487,1.41824163,56819.0,56818.0,0.03465887]
[1725597477721,1.41824163,56819.0,56818.0,0.01564]
[1725597477722,2.29781746,56819.0,56818.0,0.01564]
[1725597478184,2.73411146,56819.0,56818.0,0.01564]
[1725597478412,2.73311146,56819.0,56818.0,0.00764]
[1725597478902,3.20311699,56819.0,56818.0,0.00964]
[1725597479144,3.20211699,56819.0,56818.0,0.00164]
[1725597479372,3.20211699,56819.0,56818.0,0.00664]
[1725597479373,3.20311699,56819.0,56818.0,0.00664]
[1725597479825,3.20211699,56819.0,56818.0,0.00164]
[1725597480052,3.22056931,56819.0,56818.0,0.00164]
[1725597480312,3.22056931,56819.0,56818.0,0.00264]
[1725597480548,0.327225,56810.0,56799.0,1.26834925]
[1725597480779,1.04787616,56810.0,56800.0,0.57858167]
[1725597481023,1.25354011,56810.0,56800.0,0.05207652]
[1725597481259,1.94108895,56810.0,56800.0,0.05207652]
[1725597481495,1.98524696,56810.0,56800.0,0.05207652]
[1725597481735,1.86303023,56810.0,56800.0,0.05207652]
[1725597481969,1.86303023,56810.0,56803.0,0.00884925]
[1725597481970,1.87958301,56810.0,56803.0,0.00884925]
[1725597482214,1.95879659,56810.0,56803.0,0.00884925]
[1725597483119,1.95879659,56810.0,56801.0,0.01684925]
[1725597483360,1.95879659,56810.0,56809.0,0.00564]
[1725597483361,2.23263301,56810.0,56809.0,0.00564]
[1725597483594,2.33818005,56810.0,56809.0,0.00564]
[1725597483822,2.23263301,56810.0,56809.0,0.00564]
[1725597484100,2.23363301,56810.0,56809.0,0.00864]
[1725597484327,2.27414366,56810.0,56809.0,0.00864]
[1725597484812,2.35204796,56810.0,56809.0,0.00864]
[1725597485049,2.37965445,56810.0,56809.0,0.00864]
[1725597485261,2.37965445,56810.0,56800.0,0.03522727]
[1725597485262,1.299271,56801.0,56800.0,0.03522727]
[1725597485482,1.40012508,56801.0,56800.0,0.03522727]
[1725597485709,1.85223108,56801.0,56800.0,0.08615669]
[1725597485928,1.85223108,56801.0,56800.0,0.03522727]
[1725597486146,2.187783,56801.0,56800.0,0.03522727]
[1725597486370,2.21539213,56801.0,56800.0,0.03522727]
[1725597487020,2.21639213,56801.0,56800.0,0.03522727]
[1725597487494,2.23294835,56801.0,56800.0,0.03522727]
[1725597488238,2.23394835,56801.0,56800.0,0.03522727]
[1725597489124,1.98581725,56801.0,56800.0,0.03522727]
[1725597489535,2.16187025,56801.0,56800.0,0.03522727]
[1725597490263,2.18992022,56801.0,56800.0,0.01426471]
[1725597492377,2.19307097,56801.0,56800.0,0.01426471]
[1725597492605,2.17651475,56801.0,56800.0,0.01426471]
[1725597492824,2.19307339,56801.0,56800.0,0.01426471]
[1725597493074,2.19307325,56801.0,56800.0,0.01426471]
[1725597495975,2.19307325,56801.0,56800.0,0.01047296]
[1725597496666,2.18307325,56801.0,56800.0,0.01210696]
[1725597497121,2.09877325,56801.0,56800.0,0.01210696]
[1725597497351,2.03187325,56801.0,56800.0,0.01210696]
[1725597497547,2.02987325,56801.0,56800.0,0.01210696]
[1725597499402,2.00226412,56801.0,56800.0,0.01210696]
[1725597500748,2.07290212,56801.0,56800.0,0.01210696]
[1725597502086,2.42340212,56801.0,56800.0,0.01210696]
[1725597502328,2.40684362,56801.0,56800.0,0.01210696]
[1725597502571,2.42340038,56801.0,56800.0,0.01210696]
[1725597504333,2.07290038,56801.0,56800.0,0.01210696]
[1725597505018,2.07174963,56801.0,56800.0,0.01210696]
[1725597505684,2.05519287,56801.0,56800.0,0.01210696]
[1725597505904,2.08174949,56801.0,56800.0,0.01210696]
[1725597506554,2.12778155,56801.0,56800.0,0.01210696]
[1725597507727,2.11778155,56801.0,56800.0,0.01210696]
[1725597508136,2.11859755,56801.0,56800.0,0.01210696]
[1725597509058,2.11859733,56801.0,56800.0,0.01210696]
[1725597509535,2.11699133,56801.0,56800.0,0.08790696]
[1725597509764,1.20727527,56801.0,56800.0,0.15200696]
[1725597510024,1.55938127,56801.0,56800.0,0.01210696]
[1725597511188,1.65938127,56801.0,56800.0,0.01210696]
[1725597514300,1.6869735,56801.0,56800.0,0.01210696]
[1725597514525,1.68697244,56801.0,56800.0,0.01210696]
[1725597515470,1.6704171,56801.0,56800.0,0.01210696]
[1725597515675,1.68697261,56801.0,56800.0,0.01210696]
[1725597521640,2.03907861,56801.0,56800.0,0.01210696]
[1725597522328,2.09167032,56801.0,56800.0,0.01210696]
[1725597523218,2.03907861,56801.0,56800.0,0.01210696]
[1725597523649,2.17113043,56801.0,56800.0,0.01210696]
[1725597524329,2.03907861,56801.0,56800.0,0.01210696]
[1725597525207,2.03907942,56801.0,56800.0,0.01210696]
[1725597528623,2.0225231,56801.0,56800.0,0.01210696]
[1725597528833,2.03907929,56801.0,56800.0,0.01210696]
[1725597529056,2.04907929,56801.0,56800.0,0.01210696]
[1725597529274,2.26986333,56801.0,56800.0,0.01210696]
[1725597529491,2.26994422,56801.0,56800.0,0.01210696]
[1725597529711,2.57008529,56801.0,56800.0,0.01210696]
[1725597529949,2.75860601,56801.0,56800.0,0.01210696]
[1725597530178,2.67490601,56801.0,56800.0,0.01210696]
[1725597532113,2.51174344,56801.0,56800.0,0.01210696]
[1725597534764,2.5117448,56801.0,56800.0,0.01210696]
[1725597536679,2.4395448,56801.0,56800.0,0.01210696]
[1725597537135,2.4495448,56801.0,56800.0,0.01210696]
[1725597538048,2.43298725,56801.0,56800.0,0.01210696]
[1725597538264,2.44954443,56801.0,56800.0,0.01210696]
[1725597539175,2.06443843,56801.0,56800.0,0.01210696]
[1725597540724,2.17443843,56801.0,56800.0,0.01210696]
[1725597540944,2.17443836,56801.0,56800.0,0.01210696]
[1725597543599,2.15788125,56801.0,56800.0,0.01210696]
[1725597544057,2.17443835,56801.0,56800.0,0.01210696]
[1725597544990,1.47022635,56801.0,56800.0,0.07370696]
[1725597545501,1.6024549,56801.0,56800.0,0.07370696]
[1725597545956,1.6024549,56801.0,56800.0,0.15840696]
[1725597546178,1.60245243,56801.0,56800.0,0.15840696]
[1725597547122,1.58589533,56801.0,56800.0,0.15840696]
[1725597547341,1.60245039,56801.0,56800.0,0.15840696]
[1725597548006,1.47022431,56801.0,56800.0,0.15840696]
[1725597548224,1.45366925,56801.0,56800.0,0.15840696]
[1725597548469,1.4702244,56801.0,56800.0,0.15840696]
[1725597548688,1.60243747,56801.0,56800.0,0.15840696]
[1725597549389,1.47022439,56801.0,56800.0,0.15840696]
[1725597550067,1.36022439,56801.0,56800.0,0.15840696]
[1725597550989,1.49243204,56801.0,56800.0,0.15840696]
[1725597551180,1.49243167,56801.0,56800.0,0.15840696]
[1725597551426,1.49243166,56801.0,56800.0,0.15840696]
[1725597551935,1.84453766,56801.0,56800.0,0.15840696]
[1725597552369,1.71233038,56801.0,56800.0,0.15840696]
[1725597554218,1.71233038,56801.0,56800.0,0.07370696]
[1725597554659,1.69577525,56801.0,56800.0,0.07370696]
[1725597554884,1.69577525,56801.0,56800.0,0.01210696]
[1725597554885,1.71233127,56801.0,56800.0,0.01210696]
[1725597555356,2.0723312,56801.0,56800.0,0.01210696]
[1725597556017,2.1357312,56801.0,56800.0,0.01210696]
[1725597557410,2.4878372,56801.0,56800.0,0.01210696]
[1725597557636,2.56510415,56801.0,56800.0,0.01210696]
[1725597557891,2.57510415,56801.0,56800.0,0.01210696]
[1725597558116,2.6613482,56801.0,56800.0,0.01210696]
[1725597558339,2.67790563,56801.0,56800.0,0.01210696]
[1725597560598,2.59810563,56801.0,56800.0,0.01210696]
[1725597560832,2.66036841,56801.0,56800.0,0.01210696]
[1725597561062,2.42443868,56801.0,56800.0,0.01210696]
[1725597561276,2.07233268,56801.0,56800.0,0.01210696]
[1725597562169,2.42443868,56801.0,56800.0,0.01210696]
[1725597562822,2.07233268,56801.0,56800.0,0.01210696]
[1725597564886,2.07233184,56801.0,56800.0,0.01210696]
[1725597567330,2.23099462,56801.0,56800.0,0.01210696]
[1725597567542,2.07233184,56801.0,56800.0,0.01210696]
[1725597567762,2.23083047,56801.0,56800.0,0.01210696]
[1725597568198,2.23083074,56801.0,56800.0,0.01210696]
[1725597568434,2.07215345,56801.0,56800.0,0.01210696]
[1725597568659,2.58293995,56801.0,56800.0,0.01210696]
[1725597569092,2.23083604,56801.0,56800.0,0.01210696]
[1725597569535,2.58294204,56801.0,56800.0,0.01210696]
[1725597569757,2.23083604,56801.0,56800.0,0.01210696]
[1725597570178,2.07215345,56801.0,56800.0,0.01210696]
[1725597570399,1.93453604,56801.0,56800.0,0.01210696]
[1725597570661,2.28664204,56801.0,56800.0,0.01210696]
[1725597570911,2.12795945,56801.0,56800.0,0.01210696]
[1725597571797,2.11140259,56801.0,56800.0,0.01210696]
[1725597572024,2.12795983,56801.0,56800.0,0.01210696]
[1725597572214,2.13795983,56801.0,56800.0,0.01210696]
[1725597575667,1.71215383,56801.0,56800.0,0.01210696]
[1725597575891,1.87083233,56801.0,56800.0,0.01210696]
[1725597576144,1.87083209,56801.0,56800.0,0.01210696]
[1725597576385,2.22293809,56801.0,56800.0,0.01210696]
[1725597576614,1.87083209,56801.0,56800.0,0.01210696]
[1725597577038,2.22293809,56801.0,56800.0,0.01210696]
[1725597577728,2.06425959,56801.0,56800.0,0.01210696]
[1725597578640,2.06425965,56801.0,56800.0,0.01210696]
[1725597581098,1.71215365,56801.0,56800.0,0.01210696]
[1725597581821,1.87087683,56801.0,56800.0,0.07840696]
[1725597582047,1.85431941,56801.0,56800.0,0.07840696]
[1725597582276,1.87087618,56801.0,56800.0,0.07840696]
[1725597583371,1.75905197,56801.0,56800.0,0.07840696]
[1725597585845,1.97905197,56801.0,56800.0,0.07840696]
[1725597587858,1.75905197,56801.0,56800.0,0.07840696]
[1725597588079,1.97905197,56801.0,56800.0,0.07840696]
[1725597592115,1.97905191,56801.0,56800.0,0.07840696]
[1725597592324,1.99560863,56801.0,56800.0,0.07840696]
[1725597592526,1.99560863,56801.0,56800.0,0.01210696]
[1725597593367,2.15433999,56801.0,56800.0,0.01210696]
[1725597594910,2.22497499,56801.0,56800.0,0.01210696]
[1725597595116,2.22501722,56801.0,56800.0,0.01210696]
[1725597595312,2.22502759,56801.0,56800.0,0.01210696]
[1725597595587,2.22502897,56801.0,56800.0,0.01210696]
[1725597596017,2.22502896,56801.0,56800.0,0.01210696]
[1725597596232,2.06624362,56801.0,56800.0,0.01210696]
[1725597597400,2.22502896,56801.0,56800.0,0.01210696]
[1725597597539,2.22504919,56801.0,56800.0,0.01210696]
[1725597597987,2.06624362,56801.0,56800.0,0.01210696]
[1725597599160,2.04968691,56801.0,56800.0,0.01210696]
[1725597599999,1.97905191,56801.0,56800.0,0.01210696]
[1725597600659,2.01990973,56801.0,56800.0,0.01210696]
[1725597602349,1.97905191,56801.0,56800.0,0.01210696]
[1725597602570,2.47545791,56801.0,56800.0,0.01210696]
[1725597602788,2.09717779,56801.0,56800.0,0.01142002]
[1725597603167,1.97905191,56801.0,56800.0,0.01142002]
[1725597604501,1.95145922,56801.0,56800.0,0.01142002]
[1725597604927,2.08379919,56801.0,56800.0,0.01142002]
[1725597606251,2.0837967,56801.0,56800.0,0.01142002]
[1725597606468,1.95145922,56801.0,56800.0,0.01142002]
[1725597607121,2.0837967,56801.0,56800.0,0.01142002]
[1725597609166,2.06724045,56801.0,56800.0,0.01142002]
[1725597609377,1.71526067,56801.0,56800.0,0.01142002]
[1725597609610,1.89131367,56801.0,56800.0,0.01142002]
[1725597609829,1.10365709,56801.0,56800.0,0.15322002]
[1725597610047,1.2721298,56801.0,56800.0,0.15322002]
[1725597610260,1.21920767,56801.0,56800.0,0.15322002]
[1725597610686,1.2886721,56801.0,56800.0,0.15322002]
[1725597611112,1.27211813,56801.0,56800.0,0.15322002]
[1725597611320,1.37211813,56801.0,56800.0,0.15322002]
[1725597611526,1.37293413,56801.0,56800.0,0.15322002]
[1725597611735,1.32002367,56801.0,56800.0,0.15322002]
[1725597612445,1.33657744,56801.0,56800.0,0.15322002]
[1725597612933,1.36418487,56801.0,56800.0,0.15322002]
[1725597613860,1.3476311,56801.0,56800.0,0.15322002]
[1725597617051,1.36418476,56801.0,56800.0,0.15322002]
[1725597617474,1.37734809,56801.0,56800.0,0.15322002]
[1725597619307,1.34974066,56801.0,56800.0,0.15322002]
[1725597622228,0.99763466,56801.0,56800.0,0.15322002]
[1725597622694,1.00868809,56801.0,56800.0,0.15322002]
[1725597622918,1.02524175,56801.0,56800.0,0.15322002]
[1725597626577,0.14497675,56801.0,56800.0,0.37842413]
[1725597626811,0.32102975,56801.0,56800.0,0.20236813]
[1725597627026,0.14497675,56801.0,56800.0,0.20336813]
[1725597627262,0.04497675,56801.0,56800.0,0.20336813]
[1725597627498,0.14497675,56801.0,56800.0,0.20336813]
[1725597627747,0.14497675,56801.0,56800.0,0.20236813]
[1725597627989,0.14597675,56801.0,56800.0,0.20436813]
[1725597628455,0.67413575,56801.0,56800.0,0.20436813]
[1725597628672,0.92724175,56801.0,56800.0,0.20436813]
[1725597628914,1.35174066,56801.0,56800.0,0.20436813]
[1725597629150,1.35174066,56801.0,56800.0,0.17206927]
[1725597629378,1.335187,56801.0,56800.0,0.17206927]
[1725597629610,1.3517402,56801.0,56800.0,0.17206927]
[1725597630529,1.3793471,56801.0,56800.0,0.17206927]
[1725597632479,1.37934733,56801.0,56800.0,0.17206927]
[1725597634899,1.02724133,56801.0,56800.0,0.17206927]
[1725597636212,1.02724113,56801.0,56800.0,0.17206927]
[1725597636438,1.04979955,56801.0,56800.0,0.17206927]
[1725597638224,1.02219265,56801.0,56800.0,0.17206927]
[1725597641369,1.37429865,56801.0,56800.0,0.17206927]
[1725597641644,1.43499865,56801.0,56800.0,0.01342002]
[1725597642118,1.83994367,56801.0,56800.0,0.01342002]
[1725597642341,1.50608698,56801.0,56800.0,0.01342002]
[1725597642587,2.21819298,56801.0,56800.0,0.01342002]
[1725597642817,2.24461249,56801.0,56800.0,0.01342002]
[1725597643042,1.81324796,56801.0,56800.0,0.01342002]
[1725597643258,1.89254966,56801.0,56800.0,0.01342002]
[1725597643477,1.81324796,56801.0,56800.0,0.01342002]
[1725597643701,1.81325026,56801.0,56800.0,0.01342002]
[1725597644149,1.89255516,56801.0,56800.0,0.01342002]
[1725597645264,1.81360585,56801.0,56800.0,0.02226927]
[1725597645488,1.73430095,56801.0,56800.0,0.01342002]
[1725597645723,1.81360585,56801.0,56800.0,0.01342002]
[1725597645968,1.87650095,56801.0,56800.0,0.01342002]
[1725597646166,2.24789293,56801.0,56800.0,0.01342002]
[1725597646628,2.27548613,56801.0,56800.0,0.01342002]
[1725597647307,2.40766695,56801.0,56800.0,0.01342002]
[1725597648222,2.435277,56801.0,56800.0,0.01342002]
[1725597649149,2.4352773,56801.0,56800.0,0.01342002]
[1725597649364,2.30309648,56801.0,56800.0,0.01342002]
[1725597652469,2.36953648,56801.0,56800.0,0.01342002]
[1725597658320,2.36953648,56801.0,56800.0,0.00927194]
[1725597658321,2.4462752,56801.0,56800.0,0.00927194]
[1725597658569,2.4462752,56801.0,56800.0,0.0071979]
[1725597658570,2.75779576,56801.0,56800.0,0.0071979]
[1725597658814,2.89986853,56801.0,56800.0,0.0071979]
[1725597659050,2.91542596,56801.0,56800.0,0.0071979]
[1725597659290,2.92342596,56801.0,56800.0,0.0051979]
[1725597659757,2.92942596,56801.0,56800.0,0.0051979]
[1725597659973,2.91542596,56801.0,56800.0,0.0051979]
[1725597660195,2.92842596,56801.0,56800.0,0.0051979]
[1725597660908,2.91542596,56801.0,56800.0,0.0051979]
[1725597661347,2.91742596,56801.0,56800.0,0.0051979]
[1725597661587,2.45881996,56801.0,56800.0,0.0051979]
[1725597661807,2.22633808,56801.0,56800.0,0.0051979]
[1725597662032,2.24033808,56801.0,56800.0,0.0051979]
[1725597662272,2.34179679,56801.0,56800.0,0.0051979]
[1725597662510,2.32779679,56801.0,56800.0,0.0051979]
[1725597662725,2.34179679,56801.0,56800.0,0.0051979]
[1725597662951,2.34079679,56801.0,56800.0,0.0051979]
[1725597663407,2.34179679,56801.0,56800.0,0.0051979]
[1725597663878,2.35579679,56801.0,56800.0,0.0051979]
[1725597664351,2.34179679,56801.0,56800.0,0.0051979]
[1725597664624,2.34079679,56801.0,56800.0,0.0051979]
[1725597664853,2.33723936,56801.0,56800.0,0.0051979]
[1725597665069,2.34079625,56801.0,56800.0,0.0051979]
[1725597665538,2.35179625,56801.0,56800.0,0.0051979]
[1725597667771,2.25033754,56801.0,56800.0,0.0051979]
[1725597667991,2.3824348,56801.0,56800.0,0.0051979]
[1725597668217,2.25033754,56801.0,56800.0,0.0051979]
[1725597669105,2.1271812,56801.0,56800.0,0.0051979]
[1725597669335,2.33047431,56801.0,56800.0,0.0051979]
[1725597669556,2.23922863,56801.0,56800.0,0.0051979]
[1725597669817,2.30992863,56801.0,56800.0,0.0051979]
[1725597670967,2.29337174,56801.0,56800.0,0.0051979]
[1725597671219,2.69962926,56801.0,56800.0,0.00416088]
[1725597671427,2.81408001,56801.0,56800.0,0.00364237]
[1725597672325,2.81408001,56801.0,56800.0,1.28e-05]
[1725597672544,2.15537,56794.0,56793.0,0.00164]
[1725597672755,2.29952152,56794.0,56793.0,0.00164]
[1725597673415,1.232717,56785.0,56784.0,0.03951106]
[1725597673684,1.70147879,56785.0,56784.0,0.03951106]
[1725597673895,1.76430878,56785.0,56784.0,0.03951106]
[1725597674563,1.77536796,56785.0,56784.0,0.03951106]
[1725597675277,1.79292767,56785.0,56784.0,0.03951106]
[1725597675539,1.74009768,56785.0,56784.0,0.03951106]
[1725597675993,1.74109768,56785.0,56784.0,0.03951106]
[1725597676452,1.84673304,56785.0,56784.0,0.03951106]
[1725597676665,1.74109768,56785.0,56784.0,0.03951106]
[1725597677592,1.90859018,56785.0,56784.0,0.03951106]
[1725597677803,1.82939925,56785.0,56784.0,0.03951106]
[1725597678044,1.74109925,56785.0,56784.0,0.03951106]
[1725597678309,1.72453797,56785.0,56784.0,0.03951106]
[1725597678543,1.74109937,56785.0,56784.0,0.03951106]
[1725597678760,1.72453797,56785.0,56784.0,0.03951106]
[1725597679216,1.7521403,56785.0,56784.0,0.03951106]
[1725597679423,1.84787763,56785.0,56784.0,0.03951106]
[1725597679729,1.81207158,56785.0,56784.0,0.03951106]
[1725597680451,1.40709027,56785.0,56784.0,0.03951106]
[1725597680680,1.38889437,56785.0,56784.0,0.19291106]
[1725597680935,0.58448437,56785.0,56784.0,0.19291106]
[1725597681155,0.5568684,56785.0,56784.0,0.20976031]
[1725597681413,0.5568684,56785.0,56784.0,0.24050413]
[1725597681414,0.55686406,56785.0,56784.0,0.24050413]
[1725597681637,0.01855706,56785.0,56784.0,0.24050413]
[1725597681870,0.01855706,56785.0,56784.0,0.76882013]
[1725597682792,0.04616998,56785.0,56784.0,0.76882013]
[1725597684831,0.02961292,56785.0,56784.0,0.76882013]
[1725597685055,0.04616942,56785.0,56784.0,0.76882013]
[1725597688207,0.04616938,56785.0,56784.0,0.76882013]
[1725597689370,0.01855646,56785.0,56784.0,0.76882013]
[1725597689809,0.01855646,56785.0,56784.0,0.41660913]
[1725597691422,0.002,56785.0,56784.0,0.41660913]
[1725597691652,0.01855648,56785.0,56784.0,0.41660913]
[1725597692777,0.04616937,56785.0,56784.0,0.41660913]
[1725597693717,0.04616937,56785.0,56784.0,0.76882013]
[1725597693946,0.04616937,56785.0,56784.0,0.41660913]
[1725597694145,0.04616937,56785.0,56784.0,0.76882013]
[1725597694862,0.02961289,56785.0,56784.0,0.76882013]
[1725597695072,0.04616936,56785.0,56784.0,0.76882013]
[1725597696192,0.04616936,56785.0,56784.0,0.24050413]
[1725597696421,0.14616936,56785.0,56784.0,0.41660913]
[1725597697090,0.14616975,56785.0,56784.0,0.41660913]
[1725597697784,0.04616975,56785.0,56784.0,0.41660913]
[1725597698281,0.02961289,56785.0,56784.0,0.41660913]
[1725597698526,0.57447665,56785.0,56784.0,0.24050413]
[1725597698776,0.92668165,56785.0,56784.0,0.24050413]
[1725597699003,1.27888665,56785.0,56784.0,0.24050413]
[1725597699231,1.37888665,56785.0,56784.0,0.24050413]
[1725597699449,1.35127376,56785.0,56784.0,0.24050413]
[1725597699890,1.35106184,56785.0,56784.0,0.15200413]
[1725597700121,1.35106184,56785.0,56784.0,0.12126031]
[1725597701467,1.00991412,56785.0,56784.0,0.12126031]
[1725597701691,1.0264722,56785.0,56784.0,0.12126031]
[1725597702808,0.1459602,56785.0,56784.0,0.12126031]
[1725597703034,0.0459602,56785.0,56784.0,0.73597631]
[1725597703230,0.0459602,56785.0,56784.0,0.76672013]
[1725597704127,0.0459602,56785.0,56784.0,1.11893113]
[1725597704347,0.0459602,56785.0,56784.0,0.76672013]
[1725597704570,0.0459602,56785.0,56784.0,1.11893113]
[1725597704791,0.04595747,56785.0,56784.0,0.76672013]
[1725597705039,0.57426447,56785.0,56784.0,0.08710413]
[1725597705284,0.22206138,56785.0,56784.0,0.05636031]
[1725597705499,0.67426638,56785.0,56784.0,0.05636031]
[1725597705714,0.67426638,56785.0,56784.0,0.08807471]
[1725597706327,1.02647138,56785.0,56784.0,0.05636031]
[1725597706549,0.67426638,56785.0,56784.0,0.05636031]
[1725597706766,1.02647138,56785.0,56784.0,0.05636031]
[1725597706992,0.67426638,56785.0,56784.0,0.05636031]
[1725597707960,0.14595938,56785.0,56784.0,0.24327471]
[1725597708209,0.14595957,56785.0,56784.0,0.21156031]
[1725597708429,0.14595957,56785.0,56784.0,0.24327471]
[1725597708430,0.04595957,56785.0,56784.0,0.24327471]